Cogmind - Beta 13 X2 @@@ ROGUE MODE // 2024.01.22 @ 01:40:03 Player: Minty Result: Destroyed by G-47 Trooper with Particle Gun Performance ------------- Evolutions (0) 0 Regions Visited (1) 200 Robots Destroyed (9) 45 Value Destroyed (234) 234 Prototype IDs (2) 40 Alien Tech Used (0) 0 Bonus (0) 0 TOTAL SCORE: 519 Bonus ------- None Cogmind --------- Core Integrity 0/250 Matter 300/300 Energy 250/250 System Corruption 0% Temperature Cool (57) Movement Treading (160) Location -10/Materials Parts ------- > --- POWER (1) -------- Ion Engine > --- PROPULSION (2) --- Light Treads Light Treads > --- UTILITY (2) ------ Small Storage Unit Core Shielding > --- WEAPON (2) ------- Medium Laser Medium Laser > --- INVENTORY (8) ---- Wheel Wheel Medium Laser Mining Laser Peak State ------------ > --- POWER ------------ Ion Engine > --- PROPULSION ------- Wheel Wheel > --- UTILITY ---------- Small Storage Unit Core Shielding > --- WEAPON ----------- Medium Laser Medium Laser > --- INVENTORY -------- Light Ion Engine Light Treads Light Treads Wheel Wheel Medium Laser Medium Laser Mining Laser [Rating: 7] Favorites ----------- Power Ion Engine Engine Ion Engine Propulsion Aluminum Leg Treads Light Treads Leg Aluminum Leg Wheel Wheel Utility Small Storage Unit Storage Small Storage Unit Protection Core Shielding Weapon Medium Laser Energy Gun Medium Laser Build | -11 -10 ------- Run | Yrd Mat Slots Evolved . | . . Power . | . . Propulsion . | . . Utility . | . . Weapon . | . . Parts Attached 12 | . 12 Power 2 | . 2 Engine 2 | . 2 Core . | . . Reactor . | . . Propulsion 6 | . 6 Treads 2 | . 2 Leg . | . . Wheel 4 | . 4 Hover . | . . Flight . | . . Utility 1 | . 1 Device . | . . Storage . | . . Processor . | . . Hackware . | . . Protection 1 | . 1 Artifact . | . . Weapon 3 | . 3 Energy Gun 3 | . 3 Energy Cannon . | . . Ballistic Gun . | . . Ballistic Cannon . | . . Launcher . | . . Special Weapon . | . . Impact Weapon . | . . Slashing Weapon . | . . Piercing Weapon . | . . Special Melee Weapon . | . . Unidentified Prototypes . | . . Parts Lost 6 | . 6 Power 2 | . 2 Propulsion 3 | . 3 Utility . | . . Weapon 1 | . 1 Highest Loss Streak 5 | . 5 To Critical Strikes . | . . Average Slot Usage (%) 89 | . 89 Engine 13 | . 13 Treads 7 | . 7 Leg 13 | . 13 Wheel 7 | . 7 Storage 14 | . 14 Protection 7 | . 7 Energy Gun 26 | . 26 Naked Turns . | . . Heaviest Build 15 | 14 15 Greatest Support 40 | 20 40 Greatest Overweight (x) 1 | . 1 Average Overweight (x) . | . . Largest Inventory Capacity 8 | . 8 Average Capacity 8 | . 8 Most Carried 8 | . 8 Average Carried 6 | . 6 Final Capacity 8 | 8 8 Final Carried 6 | 6 4 Class Distribution -------------------- 100% | Mutant Dominant Class ---------------- Mutant | -10/Materials Resources | -11 -10 ----------- Run | Yrd Mat Matter Collected 278 | 200 78 Remotely . | . . Salvage Created 252 | . 252 Parts 10 | . 10 Haulers Intercepted . | . . Recyclers Shooed . | . . Parts Field Recycled . | . . Retrieved Matter . | . . Parts Self-Destructed . | . . Prevented . | . . Kills | -11 -10 ------- Run | Yrd Mat Combat Hostiles Destroyed 9 | . 9 Melee 1 | . 1 Guns 7 | . 7 Classes Destroyed 2 | . 2 Swarmer 3 | . 3 Grunt 6 | . 6 Best Kill Streak 4 | . 4 Combat Bots Only 4 | . 4 Max Kills in Single Turn 1 | . 1 Gunslinging . | . . Exploded . | . . Melee 1 | . 1 Uniques/NPCs Destroyed . | . . Combat | -11 -10 -------- Run | Yrd Mat Hostile Shots Fired 146 | . 146 Missed 29 | . 29 Damage Taken 1248 | . 1248 Core 259 | . 259 Absorbed by Shields . | . . Redirected to Shielding 45 | . 45 Regen/Repaired (Parts) 63 | . 63 Core Remaining (%) 100 | 100 . Volleys Fired 33 | . 33 Largest 2 | . 2 Hottest 100 | . 100 Shots Fired 62 | . 62 Gun 62 | . 62 Cannon . | . . Launcher . | . . Special . | . . Kinetic . | . . Thermal 62 | . 62 Explosive . | . . Electromagnetic . | . . Robot Hit Streak 8 | . 8 Robot Miss Streak 4 | . 4 Penetration Max . | . . Secondary Targets 3 | . 3 Max Gunslinging Chain 1 | . 1 Shots Hit Robots 40 | . 40 Core Hits 12 | . 12 Critical Kills . | . . Critical Parts Destroyed . | . . Critical Strikes 3 | . 3 Burn 3 | . 3 Melee Attacks . | . . Impact . | . . Slashing . | . . Piercing . | . . Sneak Attacks . | . . Combat Hostiles . | . . Follow-up Attacks . | . . Damage Inflicted 518 | . 518 Guns 510 | . 510 Cannons . | . . Explosions . | . . Melee . | . . Ramming 8 | . 8 Kinetic . | . . Thermal 510 | . 510 Explosive . | . . Electromagnetic . | . . Impact . | . . Slashing . | . . Piercing . | . . Highest Corruption . | . . Average Corruption . | . . Corruption Purged . | . . Corruption Blocked . | . . Overload Shots . | . . Overflow Damage . | . . Projectiles . | . . Explosions . | . . Melee . | . . Knockbacks . | . . Impact . | . . Kinetic . | . . Secondary . | . . Self-Inflicted Damage . | . . Shots . | . . Rammed 7 | . 7 Targets Rammed 8 | . 8 Kicked . | . . Crushed 1 | . 1 Highest Temperature 471 | . 471 Average Temperature 194 | . 194 Received Heat Transfer 600 | . 600 Effects 5 | . 5 Energy Bleed 1 | . 1 Interference 3 | . 3 Damage (minor) 1 | . 1 Siege Activations . | . . Robots Corrupted . | . . Combat Hostiles . | . . Parts Fried . | . . Impact Corruptions . | . . Robots Melted 1 | . 1 Combat Hostiles 1 | . 1 Parts Melted 5 | . 5 Heat Transferred 1739 | . 1739 Parts Sabotaged . | . . Parts Stolen . | . . Parts Stripped . | . . Power Chain Reactions . | . . Missiles Intercepted . | . . Alert | -11 -10 ------- Run | Yrd Mat Peak Influence 186 | . 186 Initial . | . . Average 75 | . 75 Maximum Alert Level . | . . Low Security (%) 100 | . 100 Level 1 . | . . Level 2 . | . . Level 3 . | . . Level 4 . | . . Level 5 . | . . High Security . | . . Max Security . | . . Squads Dispatched 2 | . 2 Investigation 2 | . 2 Extermination . | . . Reinforcement . | . . Assault . | . . Garrison . | . . Intercept . | . . Searches Triggered . | . . Construction Impeded . | . . Haulers Reinforced . | . . Active Scanning Responses . | . . Cargo Convoy Interrupts . | . . Stealth | -11 -10 --------- Run | Yrd Mat Distress Signals . | . . Communications Jammed . | . . Distress Signals . | . . Times Spotted 17 | . 17 Peak Tracking Total 6 | . 6 Tactical Retreats . | . . Traps | -11 -10 ------- Run | Yrd Mat Traps Triggered . | . . Indirectly . | . . Trap Hack Attempts . | . . Triggered . | . . Disarmed . | . . Reprogrammed . | . . Reused . | . . Traps Extracted . | . . Installed . | . . Triggered . | . . Machines | -11 -10 ---------- Run | Yrd Mat Machines Disabled . | . . Max in Single Turn . | . . Machines Repaired . | . . Machines Dismantled . | . . Machines Sabotaged . | . . Overloaded Fab Kills . | . . Hacking | -11 -10 --------- Run | Yrd Mat Machines Accessed 4 | . 4 Terminals 3 | . 3 Fabricators . | . . Repair Stations 1 | . 1 Recycling Units . | . . Scanalyzers . | . . Garrison Access . | . . Total Hacks 19 | . 19 Successful 11 | . 11 Failed 8 | . 8 Catastrophic . | . . Database Lockouts . | . . Manual 7 | . 7 Terminals 17 | . 17 Fabricators . | . . Repair Stations 2 | . 2 Recycling Units . | . . Scanalyzers . | . . Garrison Access . | . . Terminal Hacks 7 | . 7 Prototype ID Bank 2 | . 2 Locate Traps 1 | . 1 Dispatch Records 2 | . 2 Transport Status 1 | . 1 Recall Investigation 1 | . 1 Fabricator Hacks . | . . Repair Station Hacks 2 | . 2 Scan Component 1 | . 1 Repair 1 | . 1 Recycling Unit Hacks . | . . Scanalyzer . | . . Garrison Access Hacks . | . . Unauthorized Hacks 2 | . 2 Terminals 2 | . 2 Botnet 2 | . 2 Fabricators . | . . Repair Stations . | . . Recycling Units . | . . Scanalyzers . | . . Garrison Access . | . . Data Cores Recovered . | . . Used . | . . Hacking Detections 3 | . 3 Full Trace Events 2 | . 2 Feedback Events . | . . Feedback Blocked . | . . Robot Schematics Acquired . | . . Robots Built . | . . Authchips . | . . Time . | . . Total Robot Build Rating . | . . Part Schematics Acquired . | . . Parts Built . | . . Authchips . | . . Time . | . . Total Part Build Rating . | . . Parts Repaired 1 | . 1 Time 13 | . 13 Parts Recycled . | . . Recycled Matter . | . . Retrieved Matter . | . . Retrieved Components . | . . Parts Scanalyzed . | . . Part Schematics Acquired . | . . Parts Damaged . | . . Bothacking | -11 -10 ------------ Run | Yrd Mat Used RIF Installer . | . . Robots Hacked . | . . Non-combat . | . . Combat . | . . Robot Hacks Applied . | . . Relay Couplers Released . | . . Fabnet Peak Effective % . | . . Robots Rewired . | . . Allies Hacked . | . . Hacks Repelled . | . . Allies | -11 -10 -------- Run | Yrd Mat Total Allies . | . . Largest Group . | . . Highest-Rated Group . | . . Highest-Rated Ally . | . . Total Orders . | . . Ally Attacks . | . . Total Damage . | . . Kills . | . . Allies Corrupted . | . . Allies Melted . | . . Intel | -11 -10 ------- Run | Yrd Mat Robot Analysis Total . | . . Derelict Logs Recovered . | . . Drone Launches . | . . Drone Recoveries . | . . Exploration | -11 -10 ------------- Run | Yrd Mat Turns Passed 292 | . 292 Spaces Moved 125 | 1 124 Core . | . . Treads 8 | . 8 Legs 87 | 1 86 Wheels 30 | . 30 Hover . | . . Flight . | . . Fastest Speed 80 | 120 80 Average Speed 115 | 120 115 Slowest Speed 190 | 120 190 Overloaded Moves . | . . Propulsion Burnouts . | . . Robots Hopped . | . . Cave-ins Triggered . | . . Exploration Rate (%) 16 | 2 30 Regions Visited 1 Branch Regions . Pre-discovered Areas . | . . Known Exits Taken . | . . Unknown Exits Taken 1 | 1 . Scrap Searched . | . . Spaces Dug . | . . Terrain Destroyed . | . . Melee . | . . Projectile . | . . AOE . | . . Terrain Rammed . | . . Walls Destroyed . | . . Machines Disabled . | . . Actions | -11 -10 --------- Run | Yrd Mat Total 205 | . 205 Wait 21 | . 21 Move 124 | . 124 Hop . | . . Pick Up 4 | . 4 Fast Attach 4 | . 4 Attach 5 | . 5 Detach . | . . Swap 3 | . 3 Drop 3 | . 3 Fire 33 | . 33 Melee . | . . Ram . | . . Kick . | . . Crush 8 | . 8 Escape Stasis . | . . Rewire . | . . Trap . | . . Miscellaneous . | . . Route ------- -11/Scrapyard -10/Materials History --------- Turn | Location | Event 1 | -11/Scrapyard | Discovered new exit (range 0) 1 | -11/Scrapyard | Entered Materials 199 | -10/Materials | Lost 5 parts (1p3n1w) 202 | -10/Materials | Repaired Med. Laser 206 | -10/Materials | Core integrity fell below 50% 227 | -10/Materials | Core integrity fell below 20% 293 | -10/Materials | Destroyed by G-47 Trooper with Particle Gun Last Messages --------------- 00220_ Acquired Ion Engine. 00222_ Slammed into G-34 Mercenary. 00228_ R-06 Scavenger collects Sml. Laser. 00232_ R-06 Scavenger collects Aluminum Leg. 00233_ G-34 Mercenary suffers critical hit (Burn). 00233_ Heat Sink melted. 00233_ Aluminum Leg melted. 00233_ G-34 Mercenary destroyed. 00233_ Switching to secondary target: G-34 Mercenary. 00239_ G-34 Mercenary suffers critical hit (Burn). 00239_ G-34 Mercenary destroyed. 00242_ Slammed into G-34 Mercenary. 00243_ Acquired 38 matter. 00243_ Slammed into G-34 Mercenary. 00245_ Crushed G-34 Mercenary. 00245_ G-34 Mercenary destroyed. 00249_ Overheating: Energy bleed (-55). 00259_ Slammed into G-34 Mercenary. 00260_ G-34 Mercenary destroyed. 00272_ K-01 Serf collects debris. Map ----- +----------------------------------------------------+ | ?????????????????????????????????????????????????? | | ?????????????????????????????????????????????????? | | ?????????????????????????????????????????????????? | | ?????????????????????????????????????????????????? | | ?????????????????????????????????????????????????? | | ?????????????????????????????????????????????????? | | ?????????????????????????????????????????????????? | | ?????????????????????????????????????????????????? | | ?????????????????????????????????????????????????? | | ?????????????????????????????????????????????????? | | ?????????????????????????????????????????????????? | | ?????????????????????????????????????????????????? | | ?????????????????????????????????????????????????? | | ?????????????????????????????????????????????????? | | ?????????????????????????????????????????????????? | | ?????????????????????????????????????????????????? | | ?????????????????????????????????????????????????? | | ?????????????????????????????????????????????????? | | ?????????????????????????????????????????????????? | | ??????????????????????###########????????????????? | | ??????????????????????# #????????????????? | | ????????????????####### #????????????????? | | ??????###########w # #????????????????? | | ?????? #%k% #????????????????? | | ????? /gg! """ #????????????????? | | ?????? #k"@" """ #????????????????? | | ?????????# #### #*"R" """ #????????????????? | | ????????????????### ###%""" #????????????????? | | ??????????????????# #?#################??????????? | | ??????????????????# #???# #??????????? | | ??????????????????# #???# """ #??????????? | | ??????????????????# #???# ! """ #??????????? | | ??????????????#####+##### = """ #??????????? | | ??????????????# # %!= #??????????? | | ??????????????# # #??????????? | | ??????????????# #####/##############?????? | | ??????????????# ## ^ ^ T #?????? | | ??????????????+ / #?????? | | ??????????????# ## #?????? | | ??????????????# #### ^^ #?????? | | ??????????????# #??# #?##### | | ??????????????############## """" """" #? # | | ???????????????????????# """" """" # # | | ???????????????????????# """" """" # # | | ???????????????????????# + # | | ???????????????????????# ! % # # | | ???????????????????????# ##########+##+# / | | ??????????????########### #????# "" %*% #? # | | ??????????????# # #????# #? # | | ??????????????# """ """ # #????# #?? # | +----------------------------------------------------+ Best States ------------- Heat Dissipation 25 Energy Generation 10 Energy Capacity 250 Matter Stores 300 Matter Capacity 300 Sight Range 16 Terrain Scan Density 10 Core Shielding 20 Evasion (%) 55 Recoil Reduction 2 Item Schematics ----------------- None Robot Schematics ------------------ None Fabricated ------------ Nothing Alien Tech Used ----------------- None Achievements -------------- None Challenges ------------ None Game ------ Seed HeartCarbideSpear Manual? 0 Play Time 00:04:21 Cumulative 612.2 hours Start 2024.01.22 @ 01:37:49 End 2024.01.22 @ 01:40:03 Sessions 1 Manual Loads 0 Difficulty Rogue Special Mode None Game No. 557 Rogue 284 Adventurer 123 Explorer 150 Win Type - Total 25 Types 19/0/4/1/0/0/0/1/0 Lore% 79 Gallery% 90 Achievement% 75 Wizard Run 0 Options --------- ASCII 0 Keyboard 1 Movement Numpad Keybinds 0 Fullscreen 2 Font 18/X11Bold Map View 76x50 Zoom Use 0% Tactical HUD 1 Map Filters NONE Filters NONE Steam 1 RUN: cdce2bd3-d4da-429e-b865-33d27908f3c2